fUSD/lending_fUSD_20251109
["ID","MTS","AMOUNT","RATE_DAILY","PERIOD"]
[393465821,1762689060242,-151.0,0.00024704,7]
[393465822,1762689060252,-151.0,0.00024704,7]
[393465823,1762689060261,-151.0,0.00024704,7]
[393465824,1762689060271,-4451.081586,0.00024704,7]
[393465825,1762689060280,-4451.081586,0.00024704,7]
[393465826,1762689060289,-160.173224,0.00024704,7]
[393465827,1762689060300,-707.661665,0.00024704,7]
[393465828,1762689060309,-151.0,0.00024704,7]
[393465829,1762689060319,-707.661665,0.00024704,7]
[393465830,1762689060328,-151.0,0.00024704,7]
[393465831,1762689060338,-151.0,0.00024704,7]
[393465832,1762689060347,-707.661665,0.00024704,7]
[393465833,1762689060356,-151.0,0.00024704,7]
[393465834,1762689060369,-649.096421,0.00024704,7]
[393465835,1762689060378,-151.0,0.00024704,7]
[393465836,1762689060387,-707.661665,0.00024704,7]
[393465837,1762689060397,-649.096421,0.00024704,7]
[393465838,1762689060406,-241.372738,0.00024704,7]
[393465839,1762689060418,-649.096421,0.00024704,7]
[393465840,1762689060428,-241.372738,0.00024704,7]
[393465841,1762689060437,-649.096421,0.00024704,7]
[393465842,1762689060447,-241.372738,0.00024704,7]
[393465843,1762689060457,-241.372738,0.00024704,7]
[393465844,1762689060466,-151.0,0.00024704,7]
[393465845,1762689060476,-151.0,0.00024704,7]
[393465846,1762689060485,-176.311602,0.00024704,7]
[393465847,1762689060494,-176.311602,0.00024704,7]
[393465848,1762689060504,-172.277072,0.00024704,7]
[393465849,1762689060514,-176.311602,0.00024704,7]
[393465850,1762689060523,-176.311602,0.00024704,7]
[393465851,1762689060532,-259.568845,0.00024704,7]
[393465852,1762689060541,-170.468976,0.00024704,7]
[393465853,1762689060551,-170.468976,0.00024704,7]
[393465854,1762689060560,-170.468976,0.00024704,7]
[393465855,1762689060570,-170.468976,0.00024704,7]
[393465856,1762689060579,-151.0,0.00024704,7]
[393465857,1762689060589,-151.0,0.00024704,7]
[393465858,1762689060599,-156.220285,0.00024704,7]
[393465859,1762689060608,-151.0,0.000248,7]
[393465860,1762689060617,-151.0,0.000248,7]
[393465861,1762689060627,-151.0,0.000248,7]
[393465862,1762689060637,-151.0,0.000248,7]
[393465863,1762689060646,-151.0,0.000248,7]
[393465864,1762689060656,-151.0,0.000248,7]
[393465865,1762689060666,-151.0,0.000248,7]
[393465866,1762689060675,-151.0,0.000248,7]
[393465867,1762689060684,-151.0,0.000248,7]
[393465868,1762689060693,-151.0,0.000248,7]
[393465869,1762689060703,-158.356247,0.000248,7]
[393465870,1762689060712,-151.0,0.000248,7]
[393465871,1762689060722,-151.0,0.000248,7]
[393465872,1762689060731,-151.0,0.000248,7]
[393465873,1762689060740,-151.0,0.000248,7]
[393465874,1762689060749,-151.0,0.000248,7]
[393465875,1762689060759,-151.0,0.000248,7]
[393465876,1762689060768,-151.0,0.000248,7]
[393465877,1762689060778,-151.0,0.000248,7]
[393465878,1762689060787,-151.0,0.000248,7]
[393465879,1762689060796,-151.0,0.000248,7]
[393465880,1762689060805,-151.0,0.000248,7]
[393465881,1762689060815,-151.0,0.000248,7]
[393465882,1762689060827,-151.0,0.000248,7]
[393465883,1762689060836,-199.275728,0.000248,7]
[393465884,1762689060846,-151.0,0.000248,7]
[393465885,1762689060856,-151.0,0.000248,7]
[393465886,1762689060865,-180.760483,0.000248,7]
[393465887,1762689060875,-151.0,0.000248,7]
[393465888,1762689060885,-151.0,0.000248,7]
[393465889,1762689060896,-158.345241,0.000248,7]
[393465890,1762689060905,-151.0,0.000248,7]
[393465891,1762689060915,-151.0,0.000248,7]
[393465892,1762689061008,-151.0,0.000248,7]
[393465893,1762689061019,-151.0,0.000248,7]
[393465894,1762689061028,-151.0,0.000248,7]
[393465895,1762689061037,-151.0,0.000248,7]
[393465896,1762689061046,-151.0,0.000248,7]
[393465897,1762689061055,-151.0,0.000248,7]
[393465898,1762689061064,-151.0,0.000248,7]
[393465899,1762689061075,-181.665505,0.000248,7]
[393465900,1762689061084,-151.0,0.000248,7]
[393465901,1762689061093,-181.665505,0.000248,7]
[393465902,1762689061102,-153.227742,0.000248,7]
[393465903,1762689061112,-151.0,0.000248,7]
[393465904,1762689061121,-181.665505,0.000248,7]
[393465905,1762689061131,-153.227742,0.000248,7]
[393465906,1762689061140,-181.665505,0.000248,7]
[393465907,1762689061149,-162.886951,0.000248,7]
[393465908,1762689061158,-153.227742,0.000248,7]
[393465909,1762689061167,-153.227742,0.000248,7]
[393465910,1762689061177,-155.201252,0.000248,7]
[393465911,1762689061187,-151.0,0.000248,7]
[393465912,1762689061196,-151.0,0.000248,7]
[393465913,1762689061206,-151.0,0.000248,7]
[393465914,1762689061215,-190.01175,0.000248,7]
[393465915,1762689061224,-151.0,0.000248,7]
[393465916,1762689061234,-151.0,0.000248,7]
[393465917,1762689061243,-151.0,0.000248,7]
[393465918,1762689061251,-151.0,0.000248,7]
[393465919,1762689061260,-151.0,0.000248,7]
[393465920,1762689061270,-151.0,0.000248,7]
[393465921,1762689061279,-153.382593,0.000248,7]
[393465922,1762689061288,-151.0,0.000248,7]
[393465923,1762689061297,-720.147493,0.000248,7]
[393465924,1762689061307,-720.147493,0.000248,7]
[393465925,1762689061316,-151.0,0.000248,7]
[393465926,1762689061326,-151.0,0.000248,7]
[393465927,1762689061336,-720.147493,0.000248,7]
[393465928,1762689061345,-162.201358,0.000248,7]
[393465929,1762689061354,-720.147493,0.000248,7]
[393465930,1762689061366,-151.0,0.000248,7]
[393465931,1762689061377,-151.0,0.000248,7]
[393465932,1762689061387,-151.0,0.000248,7]
[393465933,1762689061396,-151.0,0.000248,7]
[393465934,1762689061407,-151.0,0.000248,7]
[393465935,1762689061416,-151.0,0.000248,7]
[393465936,1762689061425,-151.0,0.000248,7]
[393465937,1762689061434,-151.0,0.000248,7]
[393465938,1762689061445,-187.260727,0.000248,7]
[393465939,1762689061454,-187.260727,0.000248,7]
[393465940,1762689061464,-187.260727,0.000248,7]
[393465941,1762689061473,-187.260727,0.000248,7]
[393465942,1762689061482,-185.410889,0.000248,7]
[393465943,1762689061492,-151.0,0.000248,7]
[393465944,1762689061501,-151.0,0.000248,7]
[393465945,1762689061510,-281.786286,0.000248,7]
[393465946,1762689061519,-151.0,0.000248,7]
[393465947,1762689061528,-281.786286,0.000248,7]
[393465948,1762689061537,-158.424085,0.000248,7]
[393465949,1762689061548,-166.784343,0.000248,7]
[393465950,1762689061565,-281.786286,0.000248,7]
[393465951,1762689061575,-158.424085,0.000248,7]
[393465952,1762689061584,-281.786286,0.000248,7]
[393465953,1762689061594,-158.424085,0.000248,7]
[393465954,1762689061603,-255.720552,0.000248,7]
[393465955,1762689061613,-166.784343,0.000248,7]
[393465956,1762689061622,-154.559009,0.000248,7]
[393465957,1762689061631,-151.0,0.000248,7]
[393465958,1762689061640,-158.424085,0.000248,7]
[393465959,1762689061650,-151.0,0.000248,7]
[393465960,1762689061659,-166.784343,0.000248,7]
[393465961,1762689061668,-255.720552,0.000248,7]
[393465962,1762689061677,-151.0,0.000248,7]
[393465963,1762689061686,-151.0,0.000248,7]
[393465964,1762689061695,-151.0,0.000248,7]
[393465965,1762689061704,-151.0,0.000248,7]
[393465966,1762689061715,-255.720552,0.000248,7]
[393465967,1762689061727,-166.784343,0.000248,7]
[393465968,1762689061738,-151.0,0.000248,7]
[393465969,1762689061748,-255.720552,0.000248,7]
[393465970,1762689061757,-151.0,0.000248,7]
[393465971,1762689061767,-688.396057,0.000248,7]
[393465972,1762689061776,-688.396057,0.000248,7]
[393465973,1762689061785,-1926.880093,0.000248,7]
[393465974,1762689061794,-151.0,0.000248,7]
[393465975,1762689061803,-688.396057,0.000248,7]
[393465976,1762689061813,-425.70541644,0.000248,7]
[393465977,1762689062732,-944.8956234,0.000179,3]
[393465978,1762689062741,-1031.362102,0.00018,2]
[393465979,1762689062751,-276.22626374,0.00019291,2]
[393465980,1762689062790,-34.26977686,0.00019291,2]
[393465981,1762689062800,-1031.362102,0.00019917,7]
[393465982,1762689062809,-96.7880797,0.000229,7]
[393465983,1762689062824,-934.5740223,0.000229,7]
[393465984,1762689062833,-1031.362102,0.000229,7]
[393465985,1762689062842,-688.396057,0.000248,7]
[393465986,1762689062851,-1926.880093,0.000248,7]
[393465987,1762689062859,-1048.266309,0.000248,7]
[393465988,1762689062870,-15588.09326707,0.000248,3]
[393465989,1762689062917,-305.17805999,0.000248,3]
[393465990,1762689063668,-150.0,0.00016715,2]
[393465991,1762689063678,-1031.362102,0.00018,2]
[393465992,1762689063688,-578.064028,0.00018,2]
[393465993,1762689063697,-310.4960406,0.00019764,2]
[393465994,1762689063708,-1031.362102,0.00019917,7]
[393465995,1762689063718,-415.88,0.00022293,2]
[393465996,1762689063727,-1031.362102,0.000229,7]
[393465997,1762689063737,-18773.9141878,0.000248,3]
[393465998,1762689063748,-15078.77717,0.000248,3]
[393465999,1762689063765,-11448.0,0.000248,3]
[393466000,1762689063776,-6045.0,0.000248,3]
[393466001,1762689063787,-27695.78281127,0.000248,3]
[393466002,1762689063798,-162715.48039803,0.000248,3]
[393466003,1762689063809,-29415.62555829,0.000248,3]
[393466004,1762689063821,-34833.26764827,0.000248,3]
[393466005,1762689071986,435.2416,0.00014908,2]
[393466006,1762689109210,-320.573624,0.00015008,2]
[393466007,1762689112044,-179.426376,0.00015008,2]
[393466008,1762689112072,-4.183624,0.00015008,2]
[393466009,1762689114877,-249.99999983,0.00015008,2]
[393466010,1762689117344,-193.0,0.00015008,2]
[393466011,1762689120143,-52.81637617,0.00015008,2]
[393466012,1762689120171,-147.18362383,0.00015008,2]
[393466013,1762689139063,-292.50337589,0.00015008,2]
[393466014,1762689139085,-6.49662411,0.00015008,2]
[393466015,1762689141409,-250.0,0.00015008,2]
[393466016,1762689363870,311.16453227,0.00028998,120]
[393466034,1762690117874,-613.58766869,0.00015343,2]
[393466035,1762690117903,-250.0,0.00015381,2]
[393466036,1762690117924,-266.94397814,0.00015436,2]
[393466037,1762690117945,-500.0,0.00015493,2]
[393466038,1762690117967,-500.0,0.00015493,2]
[393466039,1762690117989,-380.06991727,0.00015493,2]
[393466040,1762690118012,-500.0,0.00015505,2]
[393466041,1762690118034,-472.7124189,0.00015593,2]
[393466042,1762690118057,-509.81604037,0.00015593,2]
[393466043,1762690118079,-486.236175,0.00016627,2]
[393466044,1762690118102,-1200.0,0.00016712,2]
[393466045,1762690118124,-150.99,0.00016847,2]
[393466046,1762690118147,-300.0,0.00016875,2]
[393466047,1762690118170,-300.0,0.00016876,2]
[393466048,1762690118191,-1200.0,0.00016876,2]
[393466049,1762690118214,-195.0,0.00016877,2]
[393466050,1762690118236,-6682.34,0.00016877,2]
[393466051,1762690118516,-999.99,0.00016877,2]
[393466052,1762690118540,-300.0,0.00016877,2]
[393466053,1762690118567,-300.0,0.00016877,2]
[393466054,1762690118590,-300.0,0.00016877,2]
[393466055,1762690118612,-300.0,0.00016877,2]
[393466056,1762690118635,-300.0,0.00016877,2]
[393466057,1762690118658,-250.0,0.00016877,2]
[393466058,1762690118681,-1147.31380163,0.00016923,2]
[393466059,1762690128021,150.0,0.00019353,120]
[393466076,1762690231847,-497.90324081,0.00016931,2]
[393466078,1762690231858,-702.09675919,0.00016931,2]
[393466079,1762690231867,-311.0,0.00016932,2]
[393466080,1762690231877,-9999.99,0.00016932,2]
[393466081,1762690231887,-300.0,0.00016961,2]
[393466082,1762690231896,-300.0,0.00016961,2]
[393466083,1762690231905,-300.0,0.00016962,2]
[393466084,1762690231915,-195.0,0.00016962,2]
[393466085,1762690231924,-250.0,0.00016962,2]
[393466086,1762690231934,-550.0,0.00016992,2]
[393466087,1762690231944,-244.9479838,0.00016993,2]
[393466088,1762690231954,-500.0,0.00016993,2]
[393466089,1762690231964,-500.0,0.00016993,2]
[393466090,1762690231974,-500.0,0.00016993,2]
[393466091,1762690231983,-371.8499857,0.00016993,2]
[393466092,1762690231993,-500.0,0.00016993,2]
[393466093,1762690232003,-500.0,0.00016993,2]
[393466094,1762690232013,-500.0,0.00016993,2]
[393466095,1762690232024,-500.0,0.00016993,2]
[393466096,1762690232033,-500.0,0.00016993,2]
[393466097,1762690232043,-493.38746551,0.00016993,2]
[393466098,1762690232053,-500.0,0.00016993,2]
[393466099,1762690232062,-57.36862092,0.00016993,2]
[393466100,1762690232102,-442.63137908,0.00016993,2]
[393466101,1762690232111,-285.02671785,0.00016993,2]
[393466115,1762690232296,-250.0,0.00017,2]
[393466117,1762690232305,-300.0,0.00017043,2]
[393466119,1762690232314,-39.41127401,0.00017043,2]
[393466138,1762690232482,-260.58872599,0.00017043,2]
[393466140,1762690232491,-300.0,0.00017043,2]
[393466142,1762690232501,-195.0,0.00017043,2]
[393466144,1762690232511,-199.45468665,0.00017043,2]
[393466146,1762690232522,-50.54531335,0.00017043,2]
[393466148,1762690232531,-224.56366144,0.00017324,2]
[393466150,1762690232540,-227.89102518,0.0001736,2]
[393466197,1762690237909,-41.62963554,0.0001736,2]
[393466198,1762690237918,-458.37036446,0.0001736,2]
[393466199,1762690237930,-41.62963554,0.0001736,2]
[393466200,1762690237940,-208.4299984,0.0001736,2]
[393466201,1762690237949,-49.94036606,0.0001736,2]
[393466202,1762690237960,-450.05963394,0.0001736,2]
[393466203,1762690237970,-611.11938114,0.00017375,2]
[393466204,1762690237980,-500.0,0.00017375,2]
[393466205,1762690237989,-168.0,0.00017423,2]
[393466206,1762690237998,-192.83,0.00017883,2]
[393466207,1762690238009,-158.50153017,0.00017883,2]
[393466208,1762690238019,-310.94527089,0.00017883,2]
[393466209,1762690238028,-151.0,0.00017883,2]
[393466210,1762690238038,-151.0,0.00017883,2]
[393466211,1762690238048,-151.0,0.00017883,2]
[393466212,1762690238058,-151.0,0.00017883,2]
[393466213,1762690238068,-151.0,0.00017883,2]
[393466214,1762690238078,-172.74976541,0.00017883,2]
[393466215,1762690238087,-151.0,0.00017883,2]
[393466216,1762690238099,-151.0,0.00017883,2]
[393466217,1762690238110,-151.0,0.00017883,2]
[393466218,1762690238120,-151.0,0.00017883,2]
[393466219,1762690238130,-151.0,0.00017883,2]
[393466220,1762690238140,-151.0,0.00017883,2]
[393466221,1762690238150,-151.0,0.00017883,2]
[393466222,1762690238160,-151.0,0.00017883,2]
[393466223,1762690238169,-151.0,0.00017883,2]
[393466224,1762690238179,-33.97903417,0.00017883,2]
[393466225,1762690238191,-117.02096583,0.00017883,2]
[393466226,1762690238200,-151.0,0.00017883,2]
[393466228,1762690238209,-151.0,0.00017883,2]
[393466230,1762690238219,-87.097946,0.00017883,2]
[393466232,1762690238231,-63.902054,0.00017883,2]
[393466234,1762690238242,-151.0,0.00017883,2]
[393466236,1762690238252,-151.0,0.00017883,2]
[393466237,1762690238262,-151.0,0.00017883,2]
[393466239,1762690238273,-151.0,0.00017883,2]
[393466240,1762690238284,-145.9652858,0.00017887,2]
[393466241,1762690238297,-354.0347142,0.00017887,2]
[393466242,1762690238307,-585.20333733,0.00018,7]
[393466243,1762690238344,-250.27666267,0.00018,7]
[393466244,1762690238354,-156.203306,0.00018,2]
[393466245,1762690238363,-833.64513248,0.00018,2]
[393466246,1762690238378,-98.04840552,0.00018,2]
[393466247,1762690238388,-375.678707,0.00018,2]
[393466248,1762690238398,-1095.087792,0.00018,2]
[393466249,1762690238408,-478.20968403,0.0001804,2]
[393466250,1762690238419,-300.0,0.00018096,2]
[393466251,1762690238429,-192.83,0.00018157,2]
[393466252,1762690238439,-168.0,0.00018216,2]
[393466253,1762690238449,-168.0,0.00018391,2]
[393466254,1762690238459,-162.57231788,0.0001841,2]
[393466255,1762690238469,-192.84,0.00018431,2]
[393466256,1762690238479,-1453.0,0.00018435,2]
[393466257,1762690238489,-168.0,0.00018524,2]
[393466258,1762690238499,-420.0,0.00018526,2]
[393466259,1762690238509,-420.0,0.00018526,2]
[393466260,1762690238519,-1680.0,0.00018586,2]
[393466261,1762690238528,-200.0,0.00018624,2]
[393466262,1762690238537,-300.0,0.00018626,2]
[393466263,1762690238546,-195.0,0.00018626,2]
[393466264,1762690238555,-250.0,0.00018626,2]
[393466265,1762690238564,-500.0,0.00018718,2]
[393466266,1762690238573,-166.66,0.00018773,2]
[393466267,1762690238583,-200.0,0.00018883,2]
[393466268,1762690238592,-300.0,0.00019,2]
[393466269,1762690238603,-166.66,0.00019168,2]
[393466270,1762690238612,-2383.84,0.00019238,2]
[393466271,1762690238622,-463.17976461,0.00019322,2]
[393466272,1762690238631,-150.0,0.00019353,2]
[393466273,1762690238641,-166.66,0.00019563,2]
[393466274,1762690238651,-352.27,0.00019586,2]
[393466275,1762690238661,-800.0,0.000196,2]
[393466276,1762690238672,-800.0,0.000196,2]
[393466277,1762690238682,-218.18658635,0.000196,2]
[393466278,1762690238693,-2417.579,0.00019674,2]
[393466279,1762690238703,-208.996,0.00019674,2]
[393466280,1762690238713,-800.0,0.0001968,2]
[393466281,1762690238724,-800.0,0.0001968,2]
[393466282,1762690238734,-800.0,0.0001968,2]
[393466283,1762690238745,-800.0,0.0001968,2]
[393466284,1762690238759,-800.0,0.0001968,2]
[393466285,1762690238769,-800.0,0.0001968,2]
[393466286,1762690238778,-800.0,0.0001968,2]
[393466287,1762690238788,-800.0,0.0001968,2]
[393466288,1762690238799,-800.0,0.0001968,2]
[393466289,1762690238809,-800.0,0.0001968,2]
[393466290,1762690238820,-166.66,0.00019958,2]
[393466291,1762690238830,-203.97,0.0002,2]
[393466292,1762690238840,-6661.0,0.00020132,2]
[393466293,1762690238852,-2142.0,0.00020132,2]
[393466294,1762690238862,-559.0,0.00020132,2]
[393466295,1762690238872,-6478.0,0.00020132,2]
[393466296,1762690238882,-3098.0,0.00020132,2]
[393466297,1762690238892,-587.0,0.00020235,2]
[393466298,1762690238902,-587.0,0.00020235,2]
[393466299,1762690238912,-200.0,0.0002028,2]
[393466300,1762690238922,-200.0,0.0002028,2]
[393466301,1762690238931,-166.66,0.00020353,2]
[393466302,1762690238941,-2351.0,0.00020402,2]
[393466303,1762690238952,-6641.826,0.00020445,2]
[393466304,1762690238961,-279.885,0.00020445,2]
[393466305,1762690238971,-4070.2655,0.00020445,2]
[393466306,1762690238981,-3292.5846,0.00020445,2]
[393466307,1762690238991,-156.203306,0.000205,2]
[393466308,1762690239001,-931.693538,0.000205,2]
[393466309,1762690239010,-375.678707,0.000205,2]
[393466310,1762690239021,-1095.087792,0.000205,2]
[393466311,1762690239031,-594.84729005,0.00020689,2]
[393466312,1762690239237,-166.66,0.00020749,2]
[393466313,1762690239259,-214.19015976,0.00020773,2]
[393466314,1762690239269,-214.19015976,0.00020834,2]
[393466315,1762690239279,-1852.42,0.0002087,2]
[393466316,1762690239289,-7497.91249153,0.00020949,2]
[393466317,1762690239299,-1740.64103803,0.00020949,2]
[393466318,1762690239309,-169.0,0.0002095,2]
[393466319,1762690239318,-150.0,0.0002095,2]
[393466320,1762690239328,-150.0,0.0002095,2]
[393466321,1762690239338,-150.0,0.0002095,2]
[393466322,1762690239348,-150.0,0.0002095,2]
[393466323,1762690239357,-608.0,0.0002095,2]
[393466324,1762690239366,-917.32616053,0.0002095,2]
[393466326,1762690239792,-1849.49800974,0.0002095,2]
[393466327,1762690239804,-658.17582973,0.0002095,2]
[393466328,1762690239814,-765.47938185,0.0002095,2]
[393466329,1762690239847,-296.16242959,0.0002095,2]
[393466330,1762690239859,-254.35818856,0.0002095,2]
[393466331,1762690239868,-57.05325972,0.0002095,2]
[393466332,1762690240010,-516.94674028,0.0002095,2]
[393466333,1762690240020,-820.0,0.0002095,2]
[393466334,1762690240030,-578.94891776,0.0002095,2]
[393466335,1762690240042,-1017.05108224,0.0002095,2]
[393466336,1762690240051,-813.0,0.0002095,2]
[393466337,1762690240062,-71.55214517,0.0002095,2]
[393466338,1762690240074,-1201.44785483,0.0002095,2]
[393466339,1762690240083,-1189.0,0.0002095,2]
[393466340,1762690240092,-327.98291796,0.0002095,2]
[393466341,1762690240117,-578.01708204,0.0002095,2]
[393466342,1762690240126,-288.29474401,0.00021,2]
[393466386,1762690244247,-1000.0,0.00017032,2]
[393466387,1762690244257,-1000.0,0.00017032,2]
[393466388,1762690244266,-980.97960218,0.00017032,2]
[393466389,1762690244278,-19.02039782,0.00017032,2]
[393466390,1762690244287,-500.0,0.00017999,2]
[393466391,1762690244297,-131.56488095,0.00017999,2]
[393466392,1762690244407,-290.6570069,0.00017999,2]
[393466393,1762690244417,-61.70525599,0.00021,2]
[393466394,1762690244427,-610.0,0.00021031,2]
[393466395,1762690244436,-491.42501066,0.00021063,2]
[393466396,1762690244447,-184.25377407,0.00021063,2]
[393466397,1762690244455,-2000.0,0.00021179,2]
[393466398,1762690244464,-200.0,0.00021179,2]
[393466399,1762690244474,-500.0,0.00021211,2]
[393466400,1762690244483,-501.40957897,0.00021211,2]
[393466401,1762690244492,-500.0,0.00021211,2]
[393466402,1762690244501,-214.19015976,0.00021258,2]
[393466403,1762690244510,-312.77147883,0.0002129,2]
[393466404,1762690244519,-815.72,0.0002129,2]
[393466405,1762690244528,-12824.12,0.00021481,2]
[393466406,1762690244539,-150.0,0.00021512,2]
[393466407,1762690244548,-255.38,0.00021515,2]
[393466408,1762690244557,-999.0,0.00021544,3]
[393466409,1762690244566,-214.19015976,0.00021592,2]
[393466410,1762690244575,-214.19015976,0.00021883,2]
[393466411,1762690244584,-214.19015976,0.00022025,2]
[393466412,1762690244593,-823.0,0.00022102,2]
[393466413,1762690244603,-300.0,0.0002224,2]
[393466414,1762690244613,-151.0,0.00022293,2]
[393466415,1762690244622,-152.0,0.0002232,2]
[393466416,1762690244632,-152.0,0.0002232,2]
[393466417,1762690244642,-1242.0,0.0002232,2]
[393466418,1762690244651,-1242.0,0.0002232,2]
[393466419,1762690244660,-152.0,0.0002232,2]
[393466420,1762690244670,-152.0,0.0002232,2]
[393466421,1762690244679,-1242.0,0.0002232,2]
[393466422,1762690244688,-152.0,0.0002232,2]
[393466423,1762690244697,-1242.0,0.0002232,2]
[393466424,1762690244706,-152.0,0.0002232,2]
[393466425,1762690244716,-152.0,0.0002232,2]
[393466426,1762690244725,-1242.0,0.0002232,2]
[393466428,1762690244734,-152.0,0.0002232,2]
[393466429,1762690244744,-152.0,0.0002232,2]
[393466430,1762690244758,-152.0,0.0002232,2]
[393466431,1762690244767,-214.19015976,0.00022322,2]
[393466432,1762690244781,-500.0,0.00022345,2]
[393466433,1762690244791,-203.03230845,0.00022345,2]
[393466434,1762690244801,-300.07181277,0.00022345,2]
[393466435,1762690244812,-5401.0,0.00022346,2]
[393466436,1762690244823,-3292.0,0.00022396,2]
[393466437,1762690244835,-214.19015976,0.00022717,2]
[393466438,1762690244844,-400.0,0.00023,2]
[393466439,1762690244854,-156.203306,0.00023,2]
[393466440,1762690244863,-931.693538,0.00023,2]
[393466441,1762690244872,-375.678707,0.00023,2]
[393466442,1762690244882,-1095.087792,0.00023,2]
[393466443,1762690244891,-214.19015976,0.00023,2]
[393466444,1762690244900,-6661.0,0.00023132,2]
[393466445,1762690244910,-2142.0,0.00023132,2]
[393466446,1762690244920,-559.0,0.00023132,2]
[393466447,1762690245106,-6478.0,0.00023132,2]
[393466448,1762690245115,-500.0,0.00023151,2]
[393466449,1762690245125,-500.0,0.00023151,2]
[393466450,1762690245135,-214.19015976,0.00023161,2]
[393466451,1762690245144,-300.0,0.00023168,2]
[393466452,1762690245153,-150.0,0.0002328,2]
[393466453,1762690245163,-150.0,0.0002328,2]
[393466454,1762690245172,-214.19015976,0.00023552,2]
[393466455,1762690245182,-274.48747551,0.00023562,2]
[393466456,1762690245191,-150.0,0.00023562,2]
[393466457,1762690245200,-150.0,0.00023562,2]
[393466458,1762690245210,-150.0,0.00023562,2]
[393466459,1762690245219,-150.0,0.00023562,2]
[393466460,1762690245228,-150.0,0.00023562,2]
[393466461,1762690245237,-300.0,0.00023609,2]
[393466462,1762690245247,-214.19015976,0.00023688,2]
[393466463,1762690245256,-150.0,0.00023699,2]
[393466464,1762690245265,-150.0,0.00023836,2]
[393466465,1762690245276,-1000.0,0.0002385,2]
[393466466,1762690245287,-33671.61947868,0.000239,2]
[393466470,1762690246159,-2030.07934693,0.000239,2]
[393466471,1762690246171,-1001.27,0.000239,2]
[393466472,1762690246181,-617.40733599,0.000239,2]
[393466473,1762690246480,-40063.20152899,0.000239,2]
[393466476,1762690289889,457.28,0.0003013,120]
[393466477,1762690678692,247.44,0.00010364,2]
[393466478,1762690678907,247.44,0.00010888,2]
[393466479,1762690679123,247.44,0.00011412,2]
[393466480,1762690679313,247.44,0.00011936,2]
[393466481,1762690679502,247.44,0.0001246,2]
[393466482,1762690679693,247.44,0.00012984,2]
[393466483,1762690679888,247.44,0.00013508,2]
[393466484,1762690680085,247.44,0.00014032,2]
[393466485,1762690680287,247.44,0.00014557,2]
[393466486,1762690794921,-247.44,0.00015081,2]
[393466487,1762690810017,-247.44,0.00015605,2]
[393466488,1762691131433,166.39521399,0.0002,120]
[393466489,1762691225700,492.01963684,0.0003,120]
[393466490,1762691225961,342.69933213,0.0002301,120]
[393466491,1762691226375,-1517.64,0.000153,2]
[393466496,1762691306199,326.18449437,0.000246,120]
[393466497,1762691319598,224.5186562,0.0003,120]
[393466498,1762691319750,-7987.49,0.00015,3]
[393466499,1762691319811,-10000.01,0.00015,3]